bitfinex/quotes_ETHUSD_20250115
["timestamp","ask_amount","ask_price","bid_price","bid_amount"]
[1736939318370,0.996602,3204.2,3203.3,3.2459122]
[1736939318515,0.235002,3203.4,3203.3,3.2459122]
[1736939318720,0.235002,3203.4,3203.3,3.4229122]
[1736939318966,0.235002,3203.4,3203.3,3.177]
[1736939319740,0.235002,3203.4,3203.3,3.0]
[1736939319948,0.235002,3203.4,3203.3,3.177]
[1736939320157,0.235002,3203.4,3203.3,3.0]
[1736939320351,0.235002,3203.4,3203.3,3.177]
[1736939320648,0.235002,3203.4,3203.3,6.2459122]
[1736939320816,0.996602,3203.4,3203.3,9.38885113]
[1736939321021,0.235002,3203.4,3203.3,6.38885113]
[1736939321318,0.235002,3203.4,3203.3,3.14293893]
[1736939321719,0.235002,3203.4,3203.3,3.75350281]
[1736939321920,0.235002,3203.4,3203.3,0.78756388]
[1736939322125,0.235002,3203.4,3203.3,3.75350281]
[1736939324447,0.235002,3203.4,3203.3,3.14293893]
[1736939325918,0.7616,3203.9,3203.3,3.14293893]
[1736939326122,0.235002,3203.4,3203.3,0.177]
[1736939327553,0.235002,3203.5,3203.3,0.177]
[1736939327734,0.235002,3203.5,3203.4,2.99715176]
[1736939327925,0.235002,3203.5,3203.4,2.96593893]
[1736939332308,1.029802,3203.5,3203.4,2.96593893]
[1736939333444,1.029802,3203.5,3203.4,3.14293893]
[1736939334258,0.235002,3203.3,3203.2,0.61509505]
[1736939334460,0.235002,3203.3,3203.2,0.177]
[1736939334656,0.235002,3203.3,3203.1,2.97093893]
[1736939334657,0.235002,3203.3,3203.1,0.005]
[1736939334856,0.7948,3203.2,3203.1,0.005]
[1736939336164,0.7948,3203.2,3203.1,2.97093893]
[1736939339527,0.7948,3203.2,3203.1,0.005]
[1736939340599,0.82602909,3203.2,3203.1,0.005]
[1736939340894,1.029802,3202.3,3201.9,6.88423766]
[1736939341080,0.235002,3202.1,3202.0,3.2459122]
[1736939341782,1.029802,3202.1,3202.0,3.2459122]
[1736939341978,1.029802,3202.1,3201.4,4.57634851]
[1736939342298,1.029802,3201.5,3201.4,0.005]
[1736939343121,1.029802,3201.5,3201.4,0.182]
[1736939343654,0.235002,3201.4,3201.3,0.177]
[1736939344794,0.235002,3201.1,3201.0,2.74793893]
[1736939344987,0.235002,3201.1,3200.9,0.18]
[1736939345693,0.235002,3200.9,3200.8,0.166103]
[1736939345921,0.235002,3200.9,3200.8,0.346103]
[1736939346090,0.235002,3200.9,3200.8,0.246103]
[1736939349404,1.011802,3200.9,3200.8,0.066103]
[1736939350019,1.04303109,3200.9,3200.8,0.066103]
[1736939350221,1.011802,3200.1,3199.7,0.08476031]
[1736939350729,0.235002,3200.1,3199.9,2.97093893]
[1736939351027,0.235002,3200.1,3200.0,0.28]
[1736939351192,0.235002,3200.1,3200.0,0.83]
[1736939352193,1.011802,3200.1,3200.0,0.1]
[1736939352438,0.235002,3200.1,3200.0,0.1]
[1736939352730,0.235002,3200.1,3200.0,0.86124923]
[1736939353033,0.235002,3200.1,3200.0,0.83]
[1736939353189,0.235002,3200.1,3200.0,1.6562]
[1736939353694,0.235002,3200.3,3200.1,0.55]
[1736939353915,0.235002,3200.3,3200.2,3.51593893]
[1736939356352,0.7768,3202.3,3201.1,2.96593893]
[1736939356554,0.7768,3202.1,3201.2,0.18]
[1736939357353,0.03122909,3202.0,3201.2,0.18]
[1736939357668,0.7768,3202.1,3201.2,0.18]
[1736939357820,0.03122909,3202.0,3201.2,0.18]
[1736939358024,0.7768,3201.9,3201.2,0.18]
[1736939358267,0.7768,3201.7,3201.0,0.18]
[1736939358468,0.03122909,3201.6,3201.0,0.18]
[1736939358916,0.7768,3201.7,3201.0,0.18]
[1736939359324,0.7768,3201.7,3201.0,1.0062]
[1736939359521,0.7768,3201.7,3201.0,0.18]
[1736939360655,0.03122909,3201.6,3201.0,0.18]
[1736939361972,0.03122909,3201.6,3200.5,2.96593893]
[1736939362258,0.03122909,3201.6,3201.0,0.18]
[1736939362655,0.7768,3201.7,3201.0,0.18]
[1736939362948,0.03122909,3201.6,3201.0,0.18]
[1736939363826,0.03122909,3201.6,3201.1,0.18]
[1736939366565,0.03122909,3201.6,3201.0,0.18]
[1736939366726,0.8167,3201.5,3200.4,0.8262]
[1736939366932,0.8167,3201.5,3200.5,0.181]
[1736939367839,0.8167,3201.5,3200.6,0.55]
[1736939368063,2.96593893,3202.3,3200.6,0.55]
[1736939368064,0.03122909,3202.1,3200.8,2.96593893]
[1736939368269,0.84792909,3202.0,3201.0,0.8277]
[1736939368967,0.8167,3202.0,3201.0,0.8277]
[1736939369149,0.8167,3202.0,3201.1,3.51593893]
[1736939369355,0.03122909,3201.9,3201.1,3.51593893]
[1736939370346,0.8167,3202.0,3201.1,3.51593893]
[1736939370662,0.8167,3202.0,3201.0,1.45415897]
[1736939370663,0.03122909,3201.9,3201.0,0.8277]
[1736939371329,0.03122909,3201.9,3200.8,2.96593893]
[1736939371569,0.03122909,3201.9,3200.6,0.8277]
[1736939371570,0.8167,3201.8,3200.9,0.18]
[1736939371765,0.03122909,3201.7,3200.9,0.18]
[1736939372072,3.0,3202.2,3200.9,0.18]
[1736939372073,0.8167,3202.1,3200.9,0.18]
[1736939372260,0.8167,3201.9,3200.9,0.18]
[1736939372460,0.8167,3201.9,3200.6,0.8277]
[1736939372667,0.8167,3201.9,3200.8,0.18]
[1736939372833,0.8167,3201.9,3200.7,0.18]
[1736939373462,1.0667,3201.9,3200.2,2.96593893]
[1736939373724,2.96593893,3201.7,3200.3,0.185]
[1736939373966,0.7977,3201.6,3200.3,0.185]
[1736939374188,0.7977,3201.6,3200.0,0.9154]
[1736939374189,0.7977,3201.5,3200.0,0.9154]
[1736939374330,0.7977,3201.5,3200.1,0.185]
[1736939374536,0.7977,3201.3,3200.1,0.185]
[1736939374981,0.7977,3201.2,3200.1,0.185]
[1736939375941,0.7977,3201.2,3200.0,0.1]
[1736939377469,0.79394075,3201.2,3200.0,0.1]
[1736939386201,0.8062,3200.9,3200.0,0.1]
[1736939386497,0.8062,3200.7,3200.0,0.1]
[1736939395017,0.7713,3200.3,3200.0,0.1]
[1736939396256,0.25,3200.7,3198.5,2.9422023]
[1736939396257,1.5713,3200.1,3198.5,2.9422023]
[1736939396411,1.5713,3200.1,3198.2,3.91829873]
[1736939396412,0.7713,3199.5,3198.4,2.9422023]
[1736939396833,0.7713,3199.5,3198.5,0.03126287]
[1736939397299,0.7713,3199.5,3198.2,4.37847259]
[1736939397810,0.7713,3199.5,3198.2,4.56347259]
[1736939399113,0.7713,3199.5,3198.2,1.59753366]
[1736939399915,0.7713,3199.5,3198.2,1.41253366]
[1736939400626,0.7713,3199.5,3198.2,4.40973609]
[1736939401184,0.7713,3199.5,3198.2,0.8045635]
[1736939402120,0.7713,3199.5,3198.3,2.96593893]
[1736939402338,0.7713,3199.5,3198.6,2.96593893]
[1736939402625,0.7713,3199.5,3198.6,2.99719673]
[1736939402986,0.7713,3199.5,3198.7,0.7733]
[1736939403421,0.45372389,3200.0,3198.7,0.7733]
[1736939403422,0.7713,3199.9,3198.9,2.96593893]
[1736939403648,0.7713,3199.9,3199.0,0.2152563]
[1736939404122,0.7713,3199.9,3199.0,0.184]
[1736939405801,0.7713,3199.9,3199.1,0.03125524]
[1736939406011,0.7713,3199.9,3199.2,0.8284]
[1736939406735,0.8022,3200.2,3199.3,0.03125436]
[1736939407523,0.8022,3201.0,3199.5,2.96593893]
[1736939407728,0.55,3200.9,3199.5,2.96593893]
[1736939407924,0.8022,3200.8,3199.2,0.8284]
[1736939408128,0.8022,3200.8,3199.4,2.96593893]
[1736939409227,0.8022,3200.8,3199.4,2.99718907]
[1736939409628,0.8022,3200.8,3199.7,2.96593893]
[1736939409836,0.8022,3200.8,3199.7,3.79433893]
[1736939410196,0.8022,3200.8,3200.0,2.96593893]
[1736939410596,0.8022,3200.8,3200.0,2.99718409]
[1736939411797,0.8022,3200.8,3200.0,2.96593893]
[1736939412618,0.8022,3200.8,3200.1,0.03124486]
[1736939412795,0.8022,3200.8,3200.0,2.99718334]
[1736939413192,0.8022,3200.8,3200.3,2.96593893]
[1736939414310,0.8022,3200.8,3200.0,0.03124441]
[1736939414311,0.8022,3200.8,3200.0,2.96593893]
[1736939415036,0.8022,3200.8,3199.7,0.8284]
[1736939415234,0.8022,3200.8,3199.6,2.60967675]
[1736939415235,3.0,3200.3,3199.5,2.60967675]
[1736939415438,0.8022,3200.2,3199.5,2.60967675]
[1736939415636,0.55,3200.1,3199.5,2.60967675]
[1736939415943,0.8022,3200.0,3199.5,2.60967675]
[1736939416143,0.8022,3200.0,3198.9,0.184]
[1736939416439,0.8022,3200.0,3199.4,2.96593893]
[1736939416846,0.8022,3200.0,3199.4,2.99718982]
[1736939417410,0.8022,3201.3,3199.4,2.99718982]
[1736939417612,0.8022,3201.3,3200.0,2.96593893]
[1736939417942,0.8022,3201.3,3200.0,3.14993893]
[1736939418508,0.38022,3201.2,3200.1,0.0312451]
[1736939418714,0.8022,3201.3,3200.1,0.0312451]
[1736939418940,0.8022,3201.3,3200.0,3.14993893]
[1736939419604,0.7932,3201.1,3200.0,3.14993893]
[1736939420735,0.7932,3201.1,3200.1,0.0312449]
[1736939420939,0.7932,3201.1,3200.1,0.2152449]
[1736939421139,0.7932,3201.1,3200.3,2.96593893]
[1736939421342,0.7932,3201.1,3200.4,0.03124412]
[1736939421543,0.7932,3201.1,3200.3,2.99718305]
[1736939422498,0.7932,3201.1,3200.6,2.96593893]
[1736939423314,0.7932,3201.4,3200.9,2.96593893]
[1736939423838,0.7932,3201.4,3200.6,2.96593893]
[1736939424043,0.7932,3201.4,3200.6,3.60705604]
[1736939424406,0.7932,3201.4,3200.6,2.96593893]
[1736939425214,0.7932,3201.4,3200.3,2.96593893]
[1736939425215,0.55,3201.3,3200.3,2.96593893]
[1736939425425,0.55,3201.3,3200.0,3.39867675]
[1736939425426,0.55,3201.4,3200.2,0.184]
[1736939425642,0.55,3201.4,3200.0,5.57561568]
[1736939425643,0.55,3201.0,3200.0,5.57561568]
[1736939425834,3.0,3201.7,3200.0,3.14993893]
[1736939425835,0.7932,3200.9,3200.0,3.14993893]
[1736939427932,0.7932,3200.7,3200.0,2.96593893]
[1736939428111,1.14659389,3201.6,3199.7,0.789]
[1736939428112,0.7932,3200.5,3199.7,3.14993893]
[1736939428310,0.55,3200.4,3199.5,0.63059143]
[1736939428525,0.55,3200.4,3199.4,5.57561568]
[1736939428526,0.55,3200.8,3199.4,3.14993893]
[1736939428707,0.55,3200.8,3199.1,2.60967675]
[1736939428708,0.55,3200.4,3199.1,5.75961568]
[1736939428902,1.3432,3200.7,3199.1,5.75961568]
[1736939429146,0.55,3200.3,3199.1,3.14993893]
[1736939429335,0.55,3200.5,3199.1,3.14993893]
[1736939429539,0.55,3200.3,3199.1,3.14993893]
[1736939429718,3.0,3200.8,3199.1,3.14993893]
[1736939430054,0.55,3200.5,3199.2,0.03125423]
[1736939430257,0.55,3200.1,3199.4,2.96593893]
[1736939430420,0.7932,3200.2,3199.4,2.96593893]
[1736939430853,0.7932,3200.2,3199.4,3.75493893]
[1736939432565,0.7932,3200.2,3199.4,2.96593893]
[1736939433255,0.7932,3200.0,3199.1,3.14993893]
[1736939433420,0.55,3200.7,3199.2,0.184]
[1736939433421,0.55,3200.5,3199.2,0.184]
[1736939433946,0.55,3199.9,3199.1,2.96593893]
[1736939434150,0.55,3199.9,3199.1,3.14993893]
[1736939434460,0.55,3200.3,3199.1,2.96593893]
[1736939434624,3.0,3200.8,3199.1,2.96593893]
[1736939434823,3.21593893,3200.9,3199.1,2.96593893]
[1736939434824,0.55,3200.3,3199.1,2.96593893]
[1736939435024,0.55,3200.4,3199.1,2.96593893]
[1736939435369,0.55,3200.2,3199.1,2.96593893]
[1736939435558,0.55,3200.0,3199.1,2.96593893]
[1736939436463,0.55,3199.8,3199.1,2.96593893]
[1736939439761,2.96593893,3200.6,3199.1,2.96593893]
[1736939439762,0.7827,3200.5,3199.1,2.96593893]
[1736939439930,0.55,3200.1,3199.1,2.96593893]
[1736939440134,0.7827,3199.8,3199.1,2.96593893]
[1736939440350,0.55,3199.7,3198.9,0.184]
[1736939440536,0.55,3199.5,3198.7,0.184]
[1736939442371,0.7827,3199.9,3199.1,2.97744079]
[1736939442785,0.55,3199.8,3199.1,2.97744079]
[1736939442971,0.7827,3199.9,3199.1,2.97744079]
[1736939443589,0.55,3199.8,3199.1,2.97744079]
[1736939443933,0.7827,3199.9,3199.2,0.03125539]
[1736939444268,0.7827,3199.9,3199.3,0.7985]
[1736939444835,0.7827,3200.9,3199.4,2.97744079]
[1736939445165,0.7827,3200.9,3199.8,0.7985]
[1736939445471,0.7827,3200.9,3199.9,0.03124886]
[1736939445671,0.7827,3200.9,3199.8,1.01374633]
[1736939445965,0.7827,3200.9,3199.9,0.184]
[1736939446344,0.55,3200.8,3199.9,0.184]
[1736939446745,0.7827,3201.2,3200.3,2.97744079]
[1736939446962,0.7827,3201.2,3200.5,0.7985]
[1736939450692,0.625,3201.4,3200.5,0.7985]
[1736939451032,0.625,3201.4,3200.6,2.97744079]
[1736939453373,0.625,3201.4,3200.7,0.03123965]
[1736939453574,0.625,3201.4,3200.6,2.97744079]
[1736939453952,0.625,3201.4,3200.7,0.03123965]
[1736939454147,0.625,3201.4,3200.6,2.00868044]
[1736939454460,0.03123975,3201.3,3200.6,2.00868044]
[1736939454661,0.625,3201.4,3200.6,2.03991901]
[1736939454868,0.625,3201.4,3200.6,2.00868044]
[1736939455067,0.03123975,3201.3,3200.6,2.00868044]
[1736939455981,0.625,3201.4,3200.7,0.03123857]
[1736939456192,0.625,3201.4,3200.8,0.184]
[1736939456403,0.625,3201.4,3200.9,0.7786]
[1736939459268,0.625,3201.4,3200.2,3.0]
[1736939459269,1.38693975,3201.3,3200.4,0.7786]
[1736939459496,1.38693975,3201.3,3200.4,0.184]
[1736939459704,0.55,3201.1,3200.3,0.184]
[1736939459848,0.83693975,3201.0,3200.3,0.184]
[1736939460055,0.8057,3201.0,3200.3,3.16144079]
[1736939460259,0.8057,3201.0,3200.3,3.19268474]
[1736939460453,0.625,3201.4,3200.6,2.97744079]
[1736939460656,0.625,3201.4,3200.3,0.21524395]
[1736939460657,0.625,3201.4,3200.9,2.97744079]
[1736939461268,0.625,3201.4,3201.0,0.03123662]
[1736939461468,0.625,3201.4,3201.2,2.97744079]
[1736939461655,0.12878725,3201.4,3201.3,3.21523003]
[1736939461858,0.8057,3202.8,3201.3,3.21523003]
[1736939462074,0.8057,3202.8,3202.2,2.97744079]
[1736939462398,0.8057,3203.4,3202.3,0.2152238]
[1736939462590,0.8057,3203.4,3202.5,2.97744079]
[1736939462894,0.8057,3203.9,3202.8,2.97744079]
[1736939463060,0.8057,3203.9,3202.9,0.7786]
[1736939463654,0.55,3203.8,3202.9,0.7786]
[1736939463861,0.8057,3203.9,3202.9,0.7786]
[1736939464413,0.8057,3203.9,3202.8,2.75604079]
[1736939464565,0.8057,3203.9,3203.0,0.03121892]
[1736939464763,0.8057,3203.9,3202.8,2.75604079]
[1736939464985,0.8057,3203.9,3202.9,0.03121666]
[1736939465795,0.8057,3203.9,3202.7,2.97744079]
[1736939466694,0.58123975,3203.8,3202.7,2.97744079]
[1736939467862,0.55,3203.8,3202.8,0.185]
[1736939468301,0.8057,3203.9,3202.9,0.03121888]
[1736939468492,0.8057,3203.9,3203.0,2.97744079]
[1736939468896,0.8057,3203.9,3202.8,0.185]
[1736939469620,0.55,3203.8,3202.9,0.03121778]
[1736939470529,0.8057,3203.9,3202.9,0.03121778]
[1736939470822,0.8057,3203.9,3203.3,2.97744079]
[1736939471033,0.8057,3203.9,3203.4,0.03121344]
[1736939471323,0.8057,3203.9,3203.0,3.59894079]
[1736939471707,0.55,3203.8,3203.0,2.97744079]
[1736939471908,0.03123975,3203.7,3202.7,3.59894079]
[1736939472114,0.8057,3203.9,3202.7,3.59894079]
[1736939472115,0.8057,3203.9,3203.0,2.97744079]
[1736939472324,0.8057,3203.9,3203.1,0.03121452]
[1736939472646,0.8057,3203.9,3203.2,0.6215]
[1736939472827,0.8057,3203.9,3203.3,3.00865267]
[1736939473644,0.55,3204.7,3203.3,2.80865267]
[1736939474002,0.8266,3204.5,3203.3,2.80865267]
[1736939474192,0.0390136,3204.4,3203.3,2.80865267]
[1736939475147,0.8266,3204.5,3203.6,2.97744079]
[1736939476662,0.8266,3204.5,3203.9,2.97744079]
[1736939476863,0.8226,3205.3,3203.9,2.97744079]
[1736939477163,0.55,3204.9,3203.9,2.97744079]
[1736939477320,0.03900814,3204.8,3203.9,2.97744079]
[1736939478044,0.8226,3205.0,3204.2,2.97744079]
[1736939478248,0.8226,3205.0,3204.3,0.185]
[1736939478575,0.8226,3205.0,3204.4,0.185]
[1736939480466,0.8226,3205.0,3204.5,2.97744079]
[1736939480666,0.03900186,3206.0,3204.6,0.6215]
[1736939480999,0.8226,3205.9,3204.6,0.6215]
[1736939481318,0.86159881,3205.8,3204.6,0.6215]
[1736939481474,0.55,3205.7,3204.6,0.6215]
[1736939481802,0.0389988,3205.6,3204.6,0.6215]
[1736939482199,0.0389988,3205.6,3204.8,2.97744079]
[1736939482810,0.8226,3205.5,3204.8,2.97744079]
[1736939483006,0.03899829,3205.4,3204.8,2.97744079]
[1736939483513,0.8226,3205.5,3204.8,2.97744079]
[1736939485958,0.8226,3205.5,3204.5,3.58809201]
[1736939486159,0.8226,3205.5,3204.5,2.97744079]
[1736939488577,0.8226,3205.5,3204.8,2.97744079]
[1736939488978,0.8226,3205.5,3204.9,0.185]
[1736939489184,0.8226,3205.5,3204.8,2.97744079]
[1736939489357,0.55,3205.4,3204.5,0.61240183]
[1736939489560,0.8226,3205.2,3204.6,0.185]
[1736939490066,0.8226,3205.2,3204.8,2.97744079]
[1736939490469,0.8226,3205.2,3204.7,0.6215]
[1736939490470,0.8226,3206.2,3205.1,2.97744079]
[1736939491707,0.55,3206.1,3205.1,2.97744079]
[1736939491883,0.03899347,3207.2,3205.1,2.97744079]
[1736939492069,0.8226,3207.1,3205.1,2.97744079]
[1736939492274,0.8226,3206.9,3205.1,2.97744079]
[1736939492475,0.8226,3206.7,3205.1,2.97744079]
[1736939493417,0.55,3206.6,3205.2,0.184]
[1736939493612,0.55,3206.4,3205.2,0.184]
[1736939493819,0.55,3206.0,3205.2,0.184]
[1736939494180,0.7759,3206.1,3205.2,0.184]
[1736939494181,0.7759,3205.9,3205.2,0.184]
[1736939494716,0.7759,3205.9,3204.8,2.97744079]
[1736939494899,0.7759,3205.7,3205.1,0.184]
[1736939495887,0.7759,3205.7,3205.0,0.184]
[1736939496101,0.7759,3205.7,3204.8,2.97744079]
[1736939496306,0.7759,3205.7,3205.0,0.184]
[1736939497517,0.55,3205.6,3204.5,3.61295877]
[1736939497718,0.55,3205.4,3204.4,0.6215]
[1736939497938,0.7759,3205.2,3204.1,0.6215]
[1736939498113,1.3259,3205.9,3203.6,5.57431353]
[1736939498323,0.7759,3205.4,3203.7,3.184]
[1736939498625,0.55,3205.0,3203.8,0.184]
[1736939498934,0.7759,3204.7,3203.8,0.184]
[1736939499111,0.7759,3204.5,3203.8,0.184]
[1736939499436,0.7759,3204.5,3203.6,2.97744079]
[1736939499437,0.7759,3204.5,3203.4,0.6215]
[1736939499617,0.7759,3204.3,3203.5,0.184]
[1736939499820,0.8149144,3204.2,3203.5,0.184]
[1736939502329,0.8149144,3204.2,3203.1,3.63276736]
[1736939502627,0.8149144,3204.2,3203.2,0.184]
[1736939502826,0.8149144,3204.2,3203.1,3.63276736]
[1736939502827,1.3259,3204.1,3203.1,3.63276736]
[1736939503027,0.81491686,3204.0,3203.2,0.184]
[1736939503232,0.7759,3204.0,3203.2,0.184]
[1736939506647,0.7759,3204.0,3203.3,2.97744079]
[1736939509843,0.7759,3204.0,3203.4,0.6215]
[1736939510044,0.55,3205.7,3204.2,0.25]
[1736939510248,0.02343741,3205.6,3204.2,0.25]
[1736939510545,0.55,3205.2,3204.2,0.25]
[1736939510708,0.02343741,3205.1,3204.2,0.25]
[1736939511544,0.02343741,3205.1,3203.8,0.25]
[1736939512438,0.02343741,3205.1,3203.7,0.25]
[1736939512830,0.02343741,3205.1,3203.6,0.25]
[1736939513036,0.55,3204.9,3203.6,0.25]
[1736939513356,0.55,3204.6,3203.6,0.25]
[1736939513524,0.55,3204.3,3203.6,0.25]
[1736939513709,0.55,3204.0,3203.4,0.5]
[1736939513908,0.17043189,3205.1,3203.0,0.25]
[1736939513909,0.55,3203.7,3203.0,0.25]
[1736939514135,0.55,3203.4,3202.8,0.25]
[1736939514447,0.55,3203.4,3202.4,3.44620823]
[1736939514448,0.7925,3203.2,3202.4,2.78087274]
[1736939514755,0.55,3202.9,3202.4,2.78087274]
[1736939514950,0.55,3202.6,3202.4,2.59687274]
[1736939515245,1.36593741,3202.5,3202.4,2.59687274]
[1736939515445,1.36593741,3202.5,3202.0,0.434]
[1736939515446,0.55,3202.4,3202.0,0.434]
[1736939515650,0.02343741,3202.3,3202.0,0.434]
[1736939516012,0.02343741,3202.3,3202.0,0.184]
[1736939516437,0.02343741,3202.3,3202.0,0.434]
[1736939516654,0.7925,3202.5,3202.1,0.25]
[1736939516860,0.7925,3202.5,3202.3,0.25]
[1736939517445,0.7925,3202.5,3202.3,0.5]
[1736939518115,0.02343741,3203.7,3202.3,0.5]
[1736939518319,0.55,3203.5,3202.5,0.25]
[1736939518514,0.55,3202.8,3202.5,0.25]
[1736939519428,0.02343741,3202.7,3202.5,0.25]
[1736939519755,0.0196811,3202.7,3202.5,0.25]
[1736939520116,0.0196811,3202.7,3202.3,0.25]
[1736939520321,0.55,3202.5,3202.0,0.25]
[1736939520518,0.7925,3202.6,3202.1,0.25]
[1736939520734,0.7925,3202.6,3202.4,0.25]
[1736939520957,0.7925,3202.6,3202.1,0.25]
[1736939521269,0.55,3202.5,3202.1,0.25]
[1736939521754,0.01592479,3202.4,3202.1,0.25]
[1736939522057,0.01592479,3202.4,3202.0,0.25]
[1736939522260,0.01592479,3202.4,3202.1,0.25]
[1736939522863,0.01592479,3202.4,3202.0,0.5]
[1736939523358,0.55,3202.5,3202.0,0.5]
[1736939523857,0.7925,3202.6,3202.2,0.5]
[1736939524160,0.7925,3202.6,3202.4,0.25]
[1736939524356,0.16024477,3203.6,3202.4,0.25]
[1736939524357,0.55,3203.3,3202.4,0.5]
[1736939525022,0.55,3203.4,3202.4,0.5]
[1736939525222,0.55,3203.2,3202.4,0.5]
[1736939525536,0.01592479,3203.1,3202.6,0.25]
[1736939525720,0.55,3202.9,3202.4,0.25]
[1736939525928,0.7925,3202.7,3202.4,0.25]
[1736939526128,0.7925,3202.7,3202.4,0.5]
[1736939526659,0.7925,3202.7,3202.4,0.25]
[1736939526872,0.8141,3203.1,3202.4,0.25]
[1736939527055,0.8141,3203.1,3202.5,0.25]
[1736939527367,0.8141,3203.1,3202.4,0.25]
[1736939527368,0.56592479,3203.0,3202.4,0.25]
[1736939527528,0.56592479,3203.0,3202.0,0.2611]
[1736939528569,0.55,3203.0,3202.1,0.03122491]
[1736939529270,0.01592479,3203.9,3202.0,0.0312249]
[1736939529271,0.55,3202.8,3202.0,0.0312249]
[1736939529435,0.8141,3203.8,3201.8,0.185]
[1736939529643,0.55,3203.5,3201.8,0.085]
[1736939529849,0.55,3203.2,3201.8,0.085]
[1736939530161,0.55,3203.0,3201.7,0.185]
[1736939530374,0.01592479,3203.2,3201.1,0.61634235]
[1736939530375,0.55,3202.5,3201.1,0.61634235]
[1736939530659,0.55,3202.1,3201.1,0.185]
[1736939530851,0.55,3202.1,3201.1,0.21623464]
[1736939531454,0.8141,3202.2,3201.2,3.73854079]
[1736939531638,0.8141,3202.2,3201.3,0.03123038]
[1736939531837,0.55,3202.8,3201.3,0.03123038]
[1736939532042,0.55,3202.8,3201.4,0.7611]
[1736939532240,0.55,3202.8,3201.5,0.03122911]
[1736939532735,0.03903638,3202.7,3201.2,2.7697699]
[1736939533063,0.55,3203.0,3201.3,0.185]
[1736939533224,0.55,3203.0,3200.9,2.97744079]
[1736939533225,0.8141,3202.7,3200.9,3.00460339]
[1736939533428,0.55,3202.4,3201.0,0.185]
[1736939533654,0.8141,3202.5,3201.1,0.027176]
[1736939534130,1.3641,3202.3,3201.1,0.027176]
[1736939534331,0.55,3202.1,3201.0,0.21217501]
[1736939534525,0.55,3201.9,3201.0,0.185]
[1736939534768,0.03904259,3201.8,3201.0,0.185]
[1736939535275,0.55,3202.2,3201.0,0.21217495]
[1736939535632,0.03904257,3202.1,3201.0,0.21217495]
[1736939535855,0.55,3202.2,3201.2,2.97744079]
[1736939536162,0.8141,3202.3,3201.3,0.02716806]
[1736939536348,0.8141,3202.3,3201.4,0.1363]
[1736939536562,0.8141,3202.3,3201.5,0.02716266]
[1736939536749,0.8141,3202.3,3201.2,2.14090345]
[1736939538728,0.03904257,3203.2,3201.0,0.185]
[1736939538729,0.8141,3202.1,3201.0,0.185]
[1736939538931,0.55,3202.0,3201.0,0.185]
[1736939539130,0.03904252,3201.9,3201.0,0.185]
[1736939540442,0.55,3202.0,3201.0,0.185]
[1736939541235,0.8141,3202.1,3201.0,0.185]
[1736939541844,0.8141,3202.1,3201.1,0.185]
[1736939542074,0.8141,3202.1,3201.2,0.185]
[1736939543374,0.55,3202.0,3201.2,0.185]
[1736939543809,0.03904198,3201.9,3201.2,0.185]
[1736939545492,0.8141,3201.8,3201.2,0.185]
[1736939546673,0.8141,3203.0,3201.2,0.185]
[1736939546866,0.79656165,3203.2,3201.2,0.185]
[1736939546867,0.85313817,3202.9,3201.2,0.185]
[1736939547305,0.85313817,3202.9,3201.3,2.97744079]
[1736939547667,0.8141,3202.9,3201.3,2.97744079]
[1736939548001,0.8141,3202.9,3201.9,2.97744079]
[1736939548387,0.8141,3202.9,3202.0,0.62589367]
[1736939548601,0.8141,3202.9,3202.1,0.185]
[1736939549131,0.8141,3203.8,3202.2,2.97744079]
[1736939549790,0.0390225,3203.7,3202.2,2.97744079]
[1736939549999,0.8141,3203.6,3202.2,2.97744079]
[1736939550164,0.55,3203.5,3202.2,2.97744079]
[1736939550383,0.85312401,3203.4,3202.1,0.185]
[1736939550585,0.8141,3203.4,3202.1,0.185]
[1736939553622,0.03902325,3204.2,3201.9,3.0]
[1736939553623,0.55,3203.1,3201.9,3.0]
[1736939553825,0.85312786,3203.0,3202.2,0.186]
[1736939554035,0.8141,3203.0,3202.2,0.186]
[1736939554326,0.55,3203.9,3201.8,2.59687274]
[1736939554535,0.55,3203.5,3201.8,2.78287274]
[1736939554731,0.55,3203.1,3201.8,0.186]
[1736939554902,0.186,3203.8,3201.4,2.59687274]
[1736939554903,0.55,3202.9,3201.4,2.59687274]
[1736939555225,0.55,3202.5,3201.3,0.186]
[1736939555433,0.1598077,3203.6,3201.3,0.186]
[1736939555434,0.55,3202.1,3201.3,0.186]
[1736939555637,0.8316,3201.9,3201.1,2.59687274]
[1736939556018,0.55,3201.8,3201.0,0.186]
[1736939556826,0.8316,3201.9,3201.0,0.186]
[1736939558643,0.03903863,3203.0,3201.1,3.60247235]
[1736939558806,0.8316,3202.2,3201.1,6.19934509]
[1736939559001,0.8316,3202.2,3201.2,3.0]
[1736939559349,0.8316,3203.4,3201.2,3.0]
[1736939559658,0.55,3203.3,3201.4,3.0]
[1736939559860,0.8316,3203.2,3201.4,6.60247235]
[1736939560005,0.8316,3203.2,3201.6,2.59687274]
[1736939560200,0.8316,3203.2,3201.7,0.61627383]
[1736939560743,0.55,3202.9,3201.7,0.61627383]
[1736939561041,0.55,3202.9,3201.8,0.186]
[1736939561834,0.0390312,3202.8,3201.8,0.186]
[1736939562059,0.55,3202.9,3201.8,0.186]
[1736939562212,0.8316,3203.0,3201.8,0.186]
[1736939562805,0.8316,3203.0,3201.8,2.78287274]
[1736939563459,0.8316,3203.0,3201.9,3.0]